[Event "Sunway Sitges Chess Festival"]
[Date "2024.12.21"]
[White "Alekseenko, Kirill"]
[Black "Esplugas Esteve, Vicenc"]
[WhiteElo "2673"]
[BlackElo "2277"]
[Round "6.9"]
[Result "1-0"]
[TimeControl "40/5400+30:1800+30"]

1. e4 {[%clk 1:30:56]} 1... e6 {[%clk 1:28:04]} 2. d4 {[%clk 1:31:03]} 2... d5
{[%clk 1:28:29]} 3. Nd2 {[%clk 1:31:19]} 3... Be7 {[%clk 1:28:45]} 4. Ngf3
{[%clk 1:30:50]} 4... Nf6 {[%clk 1:29:05]} 5. e5 {[%clk 1:31:05]} 5... Nfd7
{[%clk 1:29:30]} 6. Nb3 {[%clk 1:31:10]} 6... b6 {[%clk 1:26:41]} 7. h4 {[%clk
1:27:41]} 7... c5 {[%clk 1:23:51]} 8. Bg5 {[%clk 1:20:37]} 8... Nc6 {[%clk
1:18:08]} 9. Bxe7 {[%clk 1:14:44]} 9... Qxe7 {[%clk 1:18:11]} 10. c3 {[%clk
1:09:10]} 10... a5 {[%clk 1:11:35]} 11. Bb5 {[%clk 1:08:08]} 11... Na7 {[%clk
1:06:37]} 12. Be2 {[%clk 1:08:14]} 12... a4 {[%clk 1:02:47]} 13. Nbd2 {[%clk
0:59:15]} 13... a3 {[%clk 0:58:13]} 14. b3 {[%clk 0:58:04]} 14... Nc6 {[%clk
0:55:38]} 15. h5 {[%clk 0:58:02]} 15... Bb7 {[%clk 0:50:39]} 16. Rh3 {[%clk
0:51:16]} 16... f6 {[%clk 0:45:26]} 17. Bb5 {[%clk 0:45:45]} 17... fxe5 {[%clk
0:43:09]} 18. dxe5 {[%clk 0:45:55]} 18... O-O {[%clk 0:43:01]} 19. Qe2 {[%clk
0:45:18]} 19... Rf5 {[%clk 0:36:55]} 20. Bd3 {[%clk 0:43:54]} 20... Rf4 {[%clk
0:37:11]} 21. O-O-O {[%clk 0:40:18]} 21... Raf8 {[%clk 0:36:29]} 22. g3 {[%clk
0:35:39]} 22... R4f7 {[%clk 0:36:05]} 23. Bc2 {[%clk 0:23:05]} 23... c4 {[%clk
0:36:10]} 24. bxc4 {[%clk 0:22:01]} 24... Nb4 {[%clk 0:33:47]} 25. Bb1 {[%clk
0:06:40]} 25... dxc4 {[%clk 0:29:24]} 26. g4 {[%clk 0:06:33]} 26... Nd3+ {[%clk
0:24:56]} 27. Bxd3 {[%clk 0:06:57]} 27... cxd3 {[%clk 0:25:21]} 28. Qxd3 {[%clk
0:07:04]} 28... Nc5 {[%clk 0:24:43]} 29. Qe3 {[%clk 0:06:21]} 29... Qe8 {[%clk
0:23:19]} 30. c4 {[%clk 0:05:11]} 30... Qa4 {[%clk 0:22:08]} 31. Nd4 {[%clk
0:04:52]} 31... Rd7 {[%clk 0:14:53]} 32. Qc3 {[%clk 0:03:58]} 32... Rfd8 {[%clk
0:13:05]} 33. N2b3 {[%clk 0:02:53]} 33... Ne4 {[%clk 0:12:21]} 34. Qc2 {[%clk
0:01:30]} 34... Rc8 {[%clk 0:12:04]} 35. c5 {[%clk 0:00:36]} 35... Nxc5 {[%clk
0:10:07]} 36. Rc3 {[%clk 0:01:04]} 36... Be4 {[%clk 0:06:33]} 37. Nxc5 {[%clk
0:00:41]} 37... Qb4 {[%clk 0:01:21]} 38. Nxe4 {[%clk 0:00:48]} 38... Rdd8 {[%clk
0:00:-18]} 1-0

[Variant "Standard"]
[Site "Europe Echecs"]

[Event "Sunway Sitges Chess Festival"]
[Date "2024.12.21"]
[White "Hess, Max"]
[Black "Siddharth, Jagadeesh"]
[WhiteElo "2385"]
[BlackElo "2510"]
[Round "6.10"]
[Result "0-1"]
[TimeControl "40/5400+30:1800+30"]

1. d4 {[%clk 1:30:57]} 1... Nf6 {[%clk 1:22:33]} 2. c4 {[%clk 1:31:14]} 2... e6
{[%clk 1:22:57]} 3. Nf3 {[%clk 1:31:32]} 3... b6 {[%clk 1:23:20]} 4. g3 {[%clk
1:31:25]} 4... Bb7 {[%clk 1:23:44]} 5. Bg2 {[%clk 1:31:48]} 5... Be7 {[%clk
1:24:09]} 6. O-O {[%clk 1:32:01]} 6... O-O {[%clk 1:24:33]} 7. Nc3 {[%clk
1:31:04]} 7... Ne4 {[%clk 1:24:56]} 8. Bd2 {[%clk 1:30:54]} 8... Nxd2 {[%clk
1:25:17]} 9. Qxd2 {[%clk 1:31:08]} 9... d6 {[%clk 1:25:41]} 10. e4 {[%clk
1:30:01]} 10... Nd7 {[%clk 1:26:04]} 11. Qc2 {[%clk 1:25:54]} 11... a6 {[%clk
1:21:45]} 12. b4 {[%clk 1:22:14]} 12... Bf6 {[%clk 1:03:11]} 13. Rfd1 {[%clk
1:07:33]} 13... g6 {[%clk 1:02:05]} 14. h4 {[%clk 1:02:16]} 14... Bg7 {[%clk
1:00:50]} 15. d5 {[%clk 0:45:06]} 15... a5 {[%clk 0:50:20]} 16. a3 {[%clk
0:35:52]} 16... Ba6 {[%clk 0:43:20]} 17. Rac1 {[%clk 0:21:10]} 17... axb4 {[%clk
0:38:34]} 18. axb4 {[%clk 0:21:33]} 18... Bxc4 {[%clk 0:38:53]} 19. dxe6 {[%clk
0:18:45]} 19... fxe6 {[%clk 0:38:50]} 20. Nd4 {[%clk 0:13:59]} 20... Ne5 {[%clk
0:31:46]} 21. f4 {[%clk 0:07:20]} 21... Ng4 {[%clk 0:30:38]} 22. Qd2 {[%clk
0:07:45]} 22... e5 {[%clk 0:27:51]} 23. Nc6 {[%clk 0:06:53]} 23... Qe8 {[%clk
0:26:51]} 24. b5 {[%clk 0:05:49]} 24... exf4 {[%clk 0:23:45]} 25. gxf4 {[%clk
0:05:27]} 25... Bh6 {[%clk 0:23:05]} 26. Nd5 {[%clk 0:05:00]} 26... Bxd5 {[%clk
0:23:29]} 27. Qxd5+ {[%clk 0:05:25]} 27... Kh8 {[%clk 0:23:53]} 28. Qd4+ {[%clk
0:04:35]} 28... Bg7 {[%clk 0:24:16]} 29. e5 {[%clk 0:04:34]} 29... dxe5 {[%clk
0:17:11]} 30. fxe5 {[%clk 0:04:59]} 30... Nxe5 {[%clk 0:17:21]} 31. Nxe5 {[%clk
0:04:27]} 31... Bxe5 {[%clk 0:17:44]} 32. Qe4 {[%clk 0:03:51]} 32... Ra2 {[%clk
0:16:03]} 33. Rd5 {[%clk 0:00:58]} 33... Bh2+ {[%clk 0:15:49]} 34. Kh1 {[%clk
0:01:25]} 34... Qxe4 {[%clk 0:16:13]} 35. Bxe4 {[%clk 0:01:51]} 35... Bd6 {[%clk
0:16:35]} 36. Rc2 {[%clk 0:01:18]} 36... Rxc2 {[%clk 0:16:58]} 37. Bxc2 {[%clk
0:01:44]} 37... Rf2 {[%clk 0:17:23]} 0-1

[Variant "Standard"]
[Site "Europe Echecs"]

[Event "Sunway Sitges Chess Festival"]
[Date "2024.12.21"]
[White "Gholami Orimi, Mahdi"]
[Black "kiladze, Luka"]
[WhiteElo "2402"]
[BlackElo "2359"]
[Round "6.11"]
[Result "1/2-1/2"]
[TimeControl "40/5400+30:1800+30"]

1. d4 {[%clk 1:30:57]} 1... d5 {[%clk 1:30:59]} 2. c4 {[%clk 1:31:20]} 2... e6
{[%clk 1:31:25]} 3. Nc3 {[%clk 1:31:43]} 3... Nf6 {[%clk 1:31:51]} 4. cxd5
{[%clk 1:32:05]} 4... exd5 {[%clk 1:32:18]} 5. Bg5 {[%clk 1:32:25]} 5... c6
{[%clk 1:32:45]} 6. e3 {[%clk 1:32:47]} 6... Be6 {[%clk 1:33:13]} 7. Bd3 {[%clk
1:32:40]} 7... Nbd7 {[%clk 1:33:39]} 8. Nge2 {[%clk 1:32:36]} 8... h6 {[%clk
1:34:05]} 9. Bh4 {[%clk 1:31:22]} 9... g5 {[%clk 1:34:34]} 10. Bg3 {[%clk
1:31:25]} 10... Nh5 {[%clk 1:34:59]} 11. Qc2 {[%clk 1:24:57]} 11... Nxg3 {[%clk
1:33:19]} 12. Nxg3 {[%clk 1:19:18]} 12... Nf6 {[%clk 1:30:38]} 13. O-O-O {[%clk
1:16:43]} 13... Qc7 {[%clk 1:24:03]} 14. h4 {[%clk 1:09:42]} 14... g4 {[%clk
1:22:38]} 15. Nce2 {[%clk 1:09:23]} 15... O-O-O {[%clk 1:19:14]} 16. Nf4 {[%clk
1:09:17]} 16... Bd6 {[%clk 1:17:46]} 17. Nge2 {[%clk 1:07:43]} 17... Kb8 {[%clk
1:14:58]} 18. Kb1 {[%clk 1:07:52]} 18... Rhg8 {[%clk 1:11:01]} 19. g3 {[%clk
1:04:43]} 19... Rge8 {[%clk 1:06:32]} 20. Ka1 {[%clk 0:58:27]} 20... Qa5 {[%clk
0:53:06]} 21. Bf5 {[%clk 0:51:58]} 21... Bxf5 {[%clk 0:47:37]} 22. Qxf5 {[%clk
0:52:18]} 22... Ne4 {[%clk 0:48:06]} 23. Nd3 {[%clk 0:35:18]} 23... Rg8 {[%clk
0:45:37]} 24. Rc1 {[%clk 0:26:20]} 24... Qd2 {[%clk 0:41:12]} 25. Nef4 {[%clk
0:26:16]} 25... Bxf4 {[%clk 0:39:35]} 26. Qxf4+ {[%clk 0:26:39]} 26... Ka8
{[%clk 0:38:24]} 27. Nc5 {[%clk 0:19:06]} 27... f5 {[%clk 0:20:15]} 28. Rhf1
{[%clk 0:14:53]} 28... Nxc5 {[%clk 0:17:15]} 29. dxc5 {[%clk 0:09:41]} 29... h5
{[%clk 0:16:49]} 30. Rfd1 {[%clk 0:08:41]} 30... Qe2 {[%clk 0:16:07]} 31. Rd4
{[%clk 0:09:00]} 31... Rgf8 {[%clk 0:14:21]} 32. a3 {[%clk 0:09:15]} 32... Rde8
{[%clk 0:06:45]} 33. Ka2 {[%clk 0:02:13]} 33... Re4 {[%clk 0:12:30]} 34. Rxe4
{[%clk 0:02:31]} 34... dxe4 {[%clk 0:12:57]} 35. Qd6 {[%clk 0:02:32]} 35... Rb8
{[%clk 0:11:22]} 36. Rd1 {[%clk 0:02:07]} 36... Qxf2 {[%clk 0:10:56]} 37. Qc7
{[%clk 0:02:25]} 37... a6 {[%clk 0:10:34]} 38. Rd8 {[%clk 0:02:03]} 38... Rxd8
{[%clk 0:10:59]} 39. Qxd8+ {[%clk 0:02:29]} 39... Ka7 {[%clk 0:11:28]} 40. Qb6+
{[%clk 0:32:52]} 1/2-1/2

[Variant "Standard"]
[Site "Europe Echecs"]

[Event "Sunway Sitges Chess Festival"]
[Date "2024.12.21"]
[White "Vetokhin, Savva"]
[Black "Tan, Jun Ying"]
[WhiteElo "2502"]
[BlackElo "2357"]
[Round "6.12"]
[Result "1-0"]
[TimeControl "40/5400+30:1800+30"]

1. d4 {[%clk 1:30:57]} 1... d5 {[%clk 1:30:29]} 2. c4 {[%clk 1:31:18]} 2... c6
{[%clk 1:30:30]} 3. cxd5 {[%clk 1:31:31]} 3... cxd5 {[%clk 1:30:47]} 4. Bf4
{[%clk 1:31:55]} 4... Nc6 {[%clk 1:30:47]} 5. e3 {[%clk 1:31:42]} 5... Nf6
{[%clk 1:30:25]} 6. Nc3 {[%clk 1:31:12]} 6... a6 {[%clk 1:30:24]} 7. Rc1 {[%clk
1:31:31]} 7... Bg4 {[%clk 1:26:34]} 8. f3 {[%clk 1:23:02]} 8... Bf5 {[%clk
1:09:47]} 9. e4 {[%clk 1:31:49]} 9... dxe4 {[%clk 0:58:22]} 10. d5 {[%clk
1:31:31]} 10... e5 {[%clk 0:50:23]} 11. dxc6 {[%clk 1:31:36]} 11... Qxd1+ {[%clk
0:49:57]} 12. Rxd1 {[%clk 1:26:52]} 12... exf4 {[%clk 0:49:59]} 13. cxb7 {[%clk
1:27:16]} 13... Rb8 {[%clk 0:50:17]} 14. Bxa6 {[%clk 1:27:17]} 14... Bd7 {[%clk
0:38:57]} 15. Nge2 {[%clk 1:09:17]} 15... exf3 {[%clk 0:33:02]} 16. gxf3 {[%clk
1:12:22]} 16... Bc6 {[%clk 0:32:11]} 17. Nd4 {[%clk 1:08:02]} 17... Bxb7 {[%clk
0:32:08]} 18. Bb5+ {[%clk 1:08:15]} 18... Ke7 {[%clk 0:30:14]} 19. Kf2 {[%clk
1:06:15]} 19... Nh5 {[%clk 0:24:28]} 20. Bc6 {[%clk 1:03:11]} 20... f6 {[%clk
0:11:36]} 21. Bxb7 {[%clk 1:02:56]} 21... Rxb7 {[%clk 0:05:52]} 22. Nc6+ {[%clk
1:03:21]} 22... Ke8 {[%clk 0:05:14]} 23. Rhe1+ {[%clk 1:03:45]} 23... Be7 {[%clk
0:04:38]} 24. Rd8+ {[%clk 1:04:10]} 24... Kf7 {[%clk 0:04:59]} 25. Rxe7+ {[%clk
1:04:34]} 25... Rxe7 {[%clk 0:05:11]} 26. Rxh8 {[%clk 1:04:59]} 1-0

[Variant "Standard"]
[Site "Europe Echecs"]

[Event "Sunway Sitges Chess Festival"]
[Date "2024.12.21"]
[White "Lee, Jun Wei"]
[Black "Girel, Joseph"]
[WhiteElo "2238"]
[BlackElo "2494"]
[Round "6.13"]
[Result "0-1"]
[TimeControl "40/5400+30:1800+30"]

1. d4 {[%clk 1:30:58]} 1... Nf6 {[%clk 1:28:01]} 2. c4 {[%clk 1:31:19]} 2... b6
{[%clk 1:28:24]} 3. Nc3 {[%clk 1:29:30]} 3... Bb7 {[%clk 1:28:42]} 4. f3 {[%clk
1:29:11]} 4... d5 {[%clk 1:26:12]} 5. cxd5 {[%clk 1:23:11]} 5... Nxd5 {[%clk
1:26:22]} 6. e4 {[%clk 1:23:18]} 6... Nxc3 {[%clk 1:26:43]} 7. bxc3 {[%clk
1:23:46]} 7... e5 {[%clk 1:26:35]} 8. Be3 {[%clk 1:16:57]} 8... exd4 {[%clk
1:22:26]} 9. cxd4 {[%clk 1:17:19]} 9... Bb4+ {[%clk 1:22:46]} 10. Kf2 {[%clk
1:16:05]} 10... O-O {[%clk 1:18:14]} 11. Bc4 {[%clk 1:10:48]} 11... Kh8 {[%clk
1:11:35]} 12. Ne2 {[%clk 1:07:47]} 12... f5 {[%clk 1:09:05]} 13. e5 {[%clk
1:00:27]} 13... Nc6 {[%clk 1:05:40]} 14. a3 {[%clk 0:49:15]} 14... Na5 {[%clk
0:59:45]} 15. Ba2 {[%clk 0:46:12]} 15... Be7 {[%clk 0:53:12]} 16. Nf4 {[%clk
0:40:11]} 16... Bg5 {[%clk 0:49:48]} 17. d5 {[%clk 0:34:26]} 17... Qe7 {[%clk
0:45:10]} 18. h4 {[%clk 0:34:26]} 18... Bh6 {[%clk 0:42:54]} 19. Qd4 {[%clk
0:31:51]} 19... Rad8 {[%clk 0:34:09]} 20. Qc3 {[%clk 0:20:36]} 20... Rfe8 {[%clk
0:31:58]} 21. Ne6 {[%clk 0:19:20]} 21... f4 {[%clk 0:29:01]} 22. Bc1 {[%clk
0:12:24]} 22... Rd7 {[%clk 0:26:34]} 23. Nxf4 {[%clk 0:09:14]} 23... Bxf4 {[%clk
0:25:32]} 24. Bxf4 {[%clk 0:09:42]} 24... Bxd5 {[%clk 0:25:51]} 25. e6 {[%clk
0:-2:-19]} 25... Bxe6 {[%clk 0:16:42]} 26. Rae1 {[%clk 0:07:17]} 26... Qf7
{[%clk 0:16:46]} 27. Bxe6 {[%clk 0:07:04]} 27... Rxe6 {[%clk 0:17:07]} 28. Rxe6
{[%clk 0:07:32]} 28... Qxe6 {[%clk 0:17:27]} 29. Re1 {[%clk 0:07:46]} 29... Qf7
{[%clk 0:15:59]} 30. Bxc7 {[%clk 0:07:42]} 30... h6 {[%clk 0:11:33]} 31. Be5
{[%clk 0:06:21]} 31... Qc4 {[%clk 0:09:32]} 32. Re4 {[%clk 0:05:10]} 32... Qxc3
{[%clk 0:07:34]} 33. Bxc3 {[%clk 0:05:39]} 33... Nc6 {[%clk 0:05:43]} 34. a4
{[%clk 0:03:03]} 34... Kg8 {[%clk 0:06:37]} 35. Rc4 {[%clk 0:00:59]} 35... Ne7
{[%clk 0:06:39]} 36. Kg3 {[%clk 0:00:37]} 36... h5 {[%clk 0:05:35]} 37. Re4
{[%clk 0:00:34]} 37... Nf5+ {[%clk 0:04:53]} 38. Kf2 {[%clk 0:00:33]} 38... Rc7
{[%clk 0:04:23]} 39. Bd2 {[%clk 0:00:33]} 39... Rc2 {[%clk 0:04:03]} 40. Ke1
{[%clk 0:30:39]} 40... Ra2 {[%clk 0:32:49]} 41. Rc4 {[%clk 0:27:28]} 41... g6
{[%clk 0:30:03]} 42. Ke2 {[%clk 0:26:03]} 42... Kf7 {[%clk 0:28:43]} 43. Kd3
{[%clk 0:23:11]} 43... Ke8 {[%clk 0:24:57]} 44. Rf4 {[%clk 0:18:51]} 44... Ke7
{[%clk 0:22:16]} 45. Re4+ {[%clk 0:14:54]} 45... Kd7 {[%clk 0:20:00]} 46. Rc4
{[%clk 0:13:46]} 46... Kd6 {[%clk 0:18:01]} 47. Re4 {[%clk 0:14:04]} 47... Kd5
{[%clk 0:17:30]} 48. Rb4 {[%clk 0:12:53]} 48... Ra1 {[%clk 0:16:06]} 49. Ke2
{[%clk 0:12:29]} 49... Nd4+ {[%clk 0:15:51]} 50. Kd3 {[%clk 0:11:36]} 50... Ra3+
{[%clk 0:13:09]} 51. Bc3 {[%clk 0:11:23]} 51... Ne6 {[%clk 0:13:31]} 52. Kc2
{[%clk 0:09:00]} 52... Ra2+ {[%clk 0:12:18]} 53. Bb2 {[%clk 0:06:57]} 53... Nc5
{[%clk 0:12:06]} 54. a5 {[%clk 0:03:00]} 54... Na4 {[%clk 0:07:18]} 55. axb6
{[%clk 0:01:19]} 55... axb6 {[%clk 0:07:47]} 56. g4 {[%clk 0:01:13]} 56... Rxb2+
{[%clk 0:07:39]} 0-1

[Variant "Standard"]
[Site "Europe Echecs"]

[Event "Sunway Sitges Chess Festival"]
[Date "2024.12.21"]
[White "Gavrilescu, David"]
[Black "Torres Rosas, Luis Carlos"]
[WhiteElo "2549"]
[BlackElo "2277"]
[Round "6.14"]
[Result "1-0"]
[TimeControl "40/5400+30:1800+30"]

1. e4 {[%clk 1:30:41]} 1... e6 {[%clk 1:30:26]} 2. d4 {[%clk 1:30:42]} 2... d5
{[%clk 1:30:43]} 3. Nc3 {[%clk 1:30:34]} 3... Nf6 {[%clk 1:30:56]} 4. Bg5 {[%clk
1:30:32]} 4... dxe4 {[%clk 1:31:16]} 5. Nxe4 {[%clk 1:30:37]} 5... Be7 {[%clk
1:29:56]} 6. Bxf6 {[%clk 1:30:35]} 6... gxf6 {[%clk 1:29:28]} 7. Nf3 {[%clk
1:30:24]} 7... f5 {[%clk 1:26:17]} 8. Nc3 {[%clk 1:30:03]} 8... a6 {[%clk
1:26:38]} 9. Qe2 {[%clk 1:29:32]} 9... b5 {[%clk 1:19:55]} 10. O-O-O {[%clk
1:29:01]} 10... b4 {[%clk 1:19:49]} 11. Na4 {[%clk 1:28:27]} 11... Qd5 {[%clk
1:19:19]} 12. c4 {[%clk 1:28:09]} 12... Qa5 {[%clk 1:07:15]} 13. b3 {[%clk
1:26:15]} 13... Bd7 {[%clk 1:00:29]} 14. d5 {[%clk 1:26:09]} 14... Bxa4 {[%clk
0:53:15]} 15. bxa4 {[%clk 1:25:16]} 15... Qxa4 {[%clk 0:42:27]} 16. dxe6 {[%clk
1:25:28]} 16... b3 {[%clk 0:39:59]} 17. exf7+ {[%clk 1:25:13]} 17... Kxf7 {[%clk
0:19:53]} 18. c5 {[%clk 1:25:02]} 18... Qa3+ {[%clk 0:15:17]} 19. Qb2 {[%clk
1:19:11]} 19... Qxc5+ {[%clk 0:14:18]} 20. Kb1 {[%clk 1:19:34]} 20... Qc2+
{[%clk 0:14:21]} 21. Qxc2 {[%clk 1:19:58]} 21... bxc2+ {[%clk 0:14:48]} 22. Kxc2
{[%clk 1:20:21]} 22... Nc6 {[%clk 0:15:05]} 23. Bc4+ {[%clk 1:18:53]} 23... Kg7
{[%clk 0:15:28]} 24. Rhe1 {[%clk 1:04:12]} 24... Rhd8 {[%clk 0:13:59]} 25. Re6
{[%clk 0:56:33]} 25... Rd6 {[%clk 0:12:04]} 26. Rdxd6 {[%clk 0:47:08]} 26...
Bxd6 {[%clk 0:11:40]} 27. Kc3 {[%clk 0:47:32]} 27... a5 {[%clk 0:10:51]} 28. Bd5
{[%clk 0:38:44]} 28... Ra6 {[%clk 0:10:55]} 29. Re8 {[%clk 0:39:09]} 29... Ne7
{[%clk 0:09:20]} 30. Bc4 {[%clk 0:38:35]} 30... Bb4+ {[%clk 0:08:52]} 31. Kc2
{[%clk 0:31:00]} 31... Rc6 {[%clk 0:08:20]} 32. Ne5 {[%clk 0:28:07]} 32... Rh6
{[%clk 0:08:41]} 33. h3 {[%clk 0:28:32]} 33... Rh4 {[%clk 0:06:34]} 34. Kd3
{[%clk 0:24:50]} 34... Re4 {[%clk 0:05:26]} 35. Nf3 {[%clk 0:26:42]} 35... Bd6
{[%clk 0:02:59]} 36. Nd4 {[%clk 0:24:37]} 36... Kf6 {[%clk 0:00:36]} 37. Rf8+
{[%clk 0:13:34]} 37... Ke5 {[%clk 0:00:48]} 38. Nf3+ {[%clk 0:12:39]} 38... Kf4
{[%clk 0:01:12]} 39. Nd2 {[%clk 0:12:57]} 39... Ng6 {[%clk 0:01:15]} 40. g3+
{[%clk 0:41:20]} 40... Kg5 {[%clk 0:31:17]} 41. Nf3+ {[%clk 0:41:44]} 41... Kh6
{[%clk 0:30:28]} 42. Rxf5 {[%clk 0:41:00]} 1-0

[Variant "Standard"]
[Site "Europe Echecs"]

[Event "Sunway Sitges Chess Festival"]
[Date "2024.12.21"]
[White "Ilamparthi A R"]
[Black "Brzezina, Piotr"]
[WhiteElo "2391"]
[BlackElo "2274"]
[Round "6.15"]
[Result "1/2-1/2"]
[TimeControl "40/5400+30:1800+30"]

1. e4 {[%clk 1:30:58]} 1... e5 {[%clk 1:29:29]} 2. Nf3 {[%clk 1:31:18]} 2... Nc6
{[%clk 1:29:48]} 3. Bb5 {[%clk 1:31:41]} 3... Nf6 {[%clk 1:29:55]} 4. O-O {[%clk
1:30:09]} 4... Nxe4 {[%clk 1:30:17]} 5. Re1 {[%clk 1:30:34]} 5... Nd6 {[%clk
1:30:29]} 6. Nxe5 {[%clk 1:30:49]} 6... Nxe5 {[%clk 1:30:45]} 7. Rxe5+ {[%clk
1:31:14]} 7... Be7 {[%clk 1:31:08]} 8. Bf1 {[%clk 1:31:31]} 8... O-O {[%clk
1:31:31]} 9. d4 {[%clk 1:31:57]} 9... Bf6 {[%clk 1:31:27]} 10. Re2 {[%clk
1:05:48]} 10... Ne8 {[%clk 1:23:44]} 11. d5 {[%clk 1:24:33]} 11... d6 {[%clk
1:15:15]} 12. h3 {[%clk 1:17:28]} 12... Bg5 {[%clk 1:07:43]} 13. f4 {[%clk
1:16:57]} 13... Bh4 {[%clk 1:05:38]} 14. Kh2 {[%clk 1:12:09]} 14... f5 {[%clk
1:04:47]} 15. Nd2 {[%clk 1:10:59]} 15... g6 {[%clk 1:04:16]} 16. Nf3 {[%clk
1:10:49]} 16... Bf6 {[%clk 1:03:19]} 17. a4 {[%clk 1:07:14]} 17... Bd7 {[%clk
0:56:48]} 18. a5 {[%clk 1:01:57]} 18... a6 {[%clk 0:54:38]} 19. Ra3 {[%clk
0:57:27]} 19... Bg7 {[%clk 0:49:10]} 20. Ng5 {[%clk 0:54:21]} 20... Nf6 {[%clk
0:40:48]} 21. Rae3 {[%clk 0:48:21]} 21... h6 {[%clk 0:39:15]} 22. Ne6 {[%clk
0:46:07]} 22... Bxe6 {[%clk 0:39:12]} 23. Rxe6 {[%clk 0:45:45]} 23... Kh7 {[%clk
0:22:42]} 24. Qd3 {[%clk 0:26:26]} 24... Ne4 {[%clk 0:19:37]} 25. R2xe4 {[%clk
0:26:21]} 25... fxe4 {[%clk 0:19:31]} 26. Qxe4 {[%clk 0:26:12]} 26... Rf6 {[%clk
0:16:11]} 27. Bd3 {[%clk 0:18:17]} 27... Rxe6 {[%clk 0:15:58]} 28. dxe6 {[%clk
0:18:08]} 28... Qf6 {[%clk 0:14:04]} 29. Qxb7 {[%clk 0:16:55]} 29... Re8 {[%clk
0:11:55]} 30. Qxa6 {[%clk 0:15:49]} 30... Qxe6 {[%clk 0:09:28]} 31. Bd2 {[%clk
0:09:55]} 31... Bd4 {[%clk 0:02:17]} 32. Qb7 {[%clk 0:08:57]} 32... Re7 {[%clk
0:00:54]} 33. a6 {[%clk 0:07:19]} 33... c5 {[%clk 0:00:08]} 34. Qc6 {[%clk
0:06:28]} 34... Qf6 {[%clk 0:-8:-34]} 35. Qf3 {[%clk 0:05:17]} 35... Bxb2 {[%clk
0:-9:-7]} 36. c3 {[%clk 0:04:51]} 36... Kg7 {[%clk 0:-10:-26]} 37. Bc4 {[%clk
0:03:30]} 37... h5 {[%clk 0:-11:-40]} 38. Bd5 {[%clk 0:01:48]} 38... Ra7 39. Bb7
{[%clk 0:01:37]} 39... h4 40. Qd3 {[%clk 0:00:56]} 40... d5 41. Qc2 {[%clk
0:-10:-27]} 41... Ba1 42. Qc1 {[%clk 0:-10:-31]} 42... Rxa6 43. Bxa6 {[%clk
0:-10:-36]} 43... Qxa6 44. Qe1 {[%clk 0:-13:-15]} 44... Qd3 45. Qe5+ {[%clk
0:-15:-10]} 45... Kf7 {[%clk 0:16:58]} 46. Be1 {[%clk 0:-17:-35]} 46... Qe4 47.
Qc7+ {[%clk 0:-17:-55]} 1/2-1/2

[Variant "Standard"]
[Site "Europe Echecs"]

[Event "Sunway Sitges Chess Festival"]
[Date "2024.12.21"]
[White "Coles, Robin"]
[Black "Lopez Martinez, Josep Manuel"]
[WhiteElo "2291"]
[BlackElo "2455"]
[Round "6.16"]
[Result "1/2-1/2"]
[TimeControl "40/5400+30:1800+30"]

1. e4 {[%clk 1:29:31]} 1... c6 {[%clk 1:22:57]} 2. d4 {[%clk 1:29:53]} 2... d5
{[%clk 1:22:57]} 3. e5 {[%clk 1:30:18]} 3... Bf5 {[%clk 1:23:07]} 4. Nd2 {[%clk
1:30:40]} 4... e6 {[%clk 1:23:11]} 5. Nb3 {[%clk 1:31:07]} 5... Nd7 {[%clk
1:23:06]} 6. Nf3 {[%clk 1:29:27]} 6... Ne7 {[%clk 1:22:18]} 7. Be2 {[%clk
1:29:36]} 7... h6 {[%clk 1:22:19]} 8. O-O {[%clk 1:29:46]} 8... Bh7 {[%clk
1:22:18]} 9. Bd2 {[%clk 1:26:10]} 9... a5 {[%clk 1:21:04]} 10. a4 {[%clk
1:25:54]} 10... Nc8 {[%clk 1:21:04]} 11. Rc1 {[%clk 1:21:23]} 11... Be7 {[%clk
1:19:45]} 12. Qe1 {[%clk 1:19:46]} 12... b6 {[%clk 1:18:04]} 13. c4 {[%clk
1:18:59]} 13... Be4 {[%clk 1:14:15]} 14. cxd5 {[%clk 1:05:14]} 14... Bxd5 {[%clk
1:13:24]} 15. Bc4 {[%clk 1:05:33]} 15... Nb8 {[%clk 1:07:06]} 16. Qe2 {[%clk
1:01:52]} 16... O-O {[%clk 1:06:09]} 17. Rfd1 {[%clk 0:59:35]} 17... Bb4 {[%clk
1:00:00]} 18. Bf4 {[%clk 0:54:18]} 18... Bxc4 {[%clk 1:05:03]} 19. Qxc4 {[%clk
0:46:19]} 19... Ne7 {[%clk 1:01:56]} 20. Nbd2 {[%clk 0:45:19]} 20... Nd7 {[%clk
0:56:35]} 21. Ne4 {[%clk 0:39:30]} 21... Nd5 {[%clk 0:56:28]} 22. Bd2 {[%clk
0:38:14]} 22... Bxd2 {[%clk 0:55:28]} 23. Nfxd2 {[%clk 0:38:03]} 23... c5 {[%clk
0:55:25]} 24. Nc3 {[%clk 0:21:17]} 24... Nxc3 {[%clk 0:47:02]} 25. bxc3 {[%clk
0:21:27]} 25... Rc8 {[%clk 0:43:46]} 26. Qb5 {[%clk 0:15:53]} 26... Qc7 {[%clk
0:34:41]} 27. Nc4 {[%clk 0:14:09]} 27... Rfd8 {[%clk 0:32:07]} 28. Nd6 {[%clk
0:06:50]} 28... Rb8 {[%clk 0:32:10]} 29. h4 {[%clk 0:06:31]} 29... Nf6 {[%clk
0:27:06]} 30. exf6 {[%clk 0:06:03]} 30... Rxd6 {[%clk 0:27:23]} 31. fxg7 {[%clk
0:03:40]} 31... Rbd8 {[%clk 0:27:25]} 32. Qe2 {[%clk 0:02:41]} 32... Qe7 {[%clk
0:25:55]} 33. dxc5 {[%clk 0:02:35]} 33... Rxd1+ {[%clk 0:25:59]} 34. Rxd1 {[%clk
0:03:04]} 34... Rxd1+ {[%clk 0:26:18]} 35. Qxd1 {[%clk 0:03:33]} 35... Qxc5
{[%clk 0:26:37]} 36. Qf3 {[%clk 0:02:52]} 36... Qe5 {[%clk 0:17:37]} 37. g3
{[%clk 0:01:04]} 37... Kxg7 {[%clk 0:16:47]} 38. Qc6 {[%clk 0:-5:-7]} 38... Qe1+
{[%clk 0:07:02]} 39. Kg2 {[%clk 0:-6:-19]} 39... Qd1 {[%clk 0:06:26]} 40. c4
{[%clk 0:31:19]} 40... Qd4 {[%clk 0:04:05]} 41. Kf3 {[%clk 0:22:58]} 41... Qd3+
{[%clk 0:29:58]} 42. Kg2 {[%clk 0:23:26]} 42... Qd4 {[%clk 0:30:05]} 43. Kf3
{[%clk 0:23:51]} 43... Qd3+ {[%clk 0:30:25]} 44. Kg2 {[%clk 0:24:17]} 44... Qd4
{[%clk 0:30:48]} 45. Kf3 {[%clk 0:24:44]} 1/2-1/2

[Variant "Standard"]
[Site "Europe Echecs"]